[Event "European Online Club-ch-C 2021"]
[Site "Online"]
[Date "2021.03.27"]
[Round "9.10"]
[White "Plat, Vojtech"]
[Black "Le Goff, Ronan"]
[Result "1/2-1/2"]
[ECO "C45"]
[WhiteElo "2552"]
[BlackElo "2288"]
[Annotator "ChessBase"]
[PlyCount "113"]
[EventDate "2021.03.27"]
[EventType "team-tourn"]
[EventCountry "NET"]
[SourceTitle "playchess.com"]
[Source "ChessBase"]
[SourceQuality "1"]
[TimeControl "900+5"]

1. e4 {[%emt 0:00:00]} e5 {[%emt 0:00:22]} 2. Nf3 {[%emt 0:00:02]} Nc6 {[%emt 0:00:02]} 3. d4 {[%emt 0:00:02]} exd4 {[%emt 0:00:01]} 4. Nxd4 {[%emt 0:00:02]} Nf6 {[%emt 0:00:02]} 5. Nxc6 {[%emt 0:00:02]} bxc6 {[%emt 0:00:02]} 6. e5 {[%emt 0:00:01]} Qe7 {[%emt 0:00:02]} 7. Qe2 {[%emt 0:00:04]} Nd5 {[%emt 0:00:02]} 8. c4 {[%emt 0:00:02]} Nb6 {[%emt 0:00:01]} 9. b3 {[%emt 0:00:04]} a5 {[%emt 0:00:06]} 10. a4 {[%emt 0:00:04]} Qe6 {[%emt 0:00:26]} 11. g3 {[%emt 0:00:09]} Bb4+ {[%emt 0:00:24]} 12. Bd2 {[%emt 0:00:02]} O-O {[%emt 0:00:07]} 13. Bg2 {[%emt 0:00:27]} Re8 {[%emt 0:00:16]} 14. f4 {[%emt 0:00:07]} f6 {[%emt 0:00:21]} 15. Bxb4 {[%emt 0:00:42]} axb4 {[%emt 0:00:03]} 16. a5 {[%emt 0:00:02]} fxe5 {[%emt 0:00:11]} 17. O-O {[%emt 0:00:03]} Bb7 {[%emt 0:01:15]} 18. Nd2 {[%emt 0:00:06]} Nc8 {[%emt 0:00:08]} 19. f5 {[%emt 0:00:01]} Qf7 {[%emt 0:00:28]} 20. Ne4 {[%emt 0:00:09]} Nd6 {[%emt 0:00:17]} 21. Nc5 {[%emt 0:00:14]} e4 {[%emt 0:00:57]} 22. Qd2 {[%emt 0:01:01]} e3 {[%emt 0:00:59]} 23. Qxb4 {[%emt 0:00:04]} e2 {[%emt 0:00:07]} 24. Rf2 {[%emt 0:00:12]} Qf6 {[%emt 0:00:37]} 25. Re1 {[%emt 0:00:04]} Qd4 {[%emt 0:00:15]} 26. Nxb7 {[%emt 0:00:38]} Nxb7 {[%emt 0:00:41]} 27. Qxb7 {[%emt 0:00:03]} Rxa5 {[%emt 0:00:25]} 28. Bd5+ {[%emt 0:03:45]} cxd5 {[%emt 0:01:19]} 29. Kg2 {[%emt 0:00:03]} Qe4+ {[%emt 0:02:48]} 30. Kg1 {[%emt 0:00:03]} dxc4 {[%emt 0:00:50]} 31. Qxe4 {[%emt 0:00:50]} Rxe4 {[%emt 0:00:00]} 32. bxc4 {[%emt 0:00:02]} Ra2 {[%emt 0:00:27]} 33. Kg2 {[%emt 0:00:04]} Kf7 {[%emt 0:00:41]} 34. Kf3 {[%emt 0:00:03]} Rxc4 {[%emt 0:00:06]} 35. Rfxe2 {[%emt 0:00:04]} Rc3+ {[%emt 0:00:14]} 36. Kf4 {[%emt 0:00:03]} Rxe2 {[%emt 0:00:24]} 37. Rxe2 {[%emt 0:00:02]} Rc4+ {[%emt 0:00:04]} 38. Kf3 {[%emt 0:00:07]} h5 {[%emt 0:00:08]} 39. h3 {[%emt 0:00:02]} Kf6 {[%emt 0:00:12]} 40. g4 {[%emt 0:00:05]} hxg4+ {[%emt 0:00:13]} 41. hxg4 {[%emt 0:00:03]} g6 {[%emt 0:00:26]} 42. fxg6 {[%emt 0:00:02]} Kxg6 {[%emt 0:00:02]} 43. Re7 {[%emt 0:00:02]} d5 {[%emt 0:00:08]} 44. Re5 {[%emt 0:00:02]} c6 {[%emt 0:00:06]} 45. g5 {[%emt 0:00:11]} Kh5 {[%emt 0:00:40]} 46. Ke3 {[%emt 0:00:05]} Rc1 {[%emt 0:00:30]} 47. Kd2 {[%emt 0:01:12]} Rc4 {[%emt 0:00:31]} 48. Kd3 {[%emt 0:00:52]} Kg6 {[%emt 0:00:03]} 49. Ke3 {[%emt 0:00:07]} Kf7 {[%emt 0:00:08]} 50. Kf3 {[%emt 0:00:09]} Rc1 {[%emt 0:00:08]} 51. Kg4 {[%emt 0:00:10]} d4 {[%emt 0:00:09]} 52. Kf5 {[%emt 0:00:35]} Rf1+ {[%emt 0:00:16]} 53. Ke4 {[%emt 0:00:02]} Re1+ {[%emt 0:00:08]} 54. Kxd4 {[%emt 0:00:02]} Rxe5 {[%emt 0:00:01]} 55. Kxe5 {[%emt 0:00:02]} Kg6 {[%emt 0:00:00]} 56. Kd6 {[%emt 0:00:02]} Kxg5 {[%emt 0:00:02]} 57. Kxc6 {[%emt 0:00:02]} 1/2-1/2

[Event "European Online Club-ch-C 2021"]
[Site "Online"]
[Date "2021.03.27"]
[Round "9.11"]
[White "Bouget, Alexandre"]
[Black "Stocek, Jiri"]
[Result "0-1"]
[ECO "E41"]
[WhiteElo "2247"]
[BlackElo "2604"]
[Annotator "ChessBase"]
[PlyCount "178"]
[EventDate "2021.03.27"]
[EventType "team-tourn"]
[EventCountry "NET"]
[SourceTitle "playchess.com"]
[Source "ChessBase"]
[SourceQuality "1"]
[TimeControl "900+5"]

1. d4 {[%emt 0:00:00]} Nf6 {[%emt 0:00:12]} 2. c4 {[%emt 0:00:04]} e6 {[%emt 0:00:17]} 3. Nc3 {[%emt 0:00:02]} Bb4 {[%emt 0:00:05]} 4. e3 {[%emt 0:00:03]} c5 {[%emt 0:00:12]} 5. Nf3 {[%emt 0:00:03]} Nc6 {[%emt 0:00:51]} 6. Bd2 {[%emt 0:00:07]} cxd4 {[%emt 0:00:11]} 7. exd4 {[%emt 0:00:04]} O-O {[%emt 0:00:21]} 8. Bd3 {[%emt 0:00:02]} d5 {[%emt 0:00:04]} 9. cxd5 {[%emt 0:00:03]} exd5 {[%emt 0:00:06]} 10. O-O {[%emt 0:00:04]} Bg4 {[%emt 0:00:06]} 11. Be3 {[%emt 0:00:31]} Re8 {[%emt 0:00:17]} 12. h3 {[%emt 0:00:03]} Bh5 {[%emt 0:00:03]} 13. Rc1 {[%emt 0:00:25]} Ne4 {[%emt 0:01:03]} 14. g4 {[%emt 0:01:12]} Bg6 {[%emt 0:00:04]} 15. Ne2 {[%emt 0:00:20]} Bd6 {[%emt 0:00:33]} 16. Nf4 {[%emt 0:00:09]} Bxf4 {[%emt 0:00:43]} 17. Bxf4 {[%emt 0:00:00]} Qf6 {[%emt 0:00:25]} 18. Be3 {[%emt 0:00:32]} h6 {[%emt 0:01:59]} 19. Kg2 {[%emt 0:00:11]} Rad8 {[%emt 0:00:19]} 20. Bb5 {[%emt 0:01:08]} Nd6 {[%emt 0:01:25]} 21. Bxc6 {[%emt 0:00:06]} bxc6 {[%emt 0:00:04]} 22. Ne5 {[%emt 0:00:28]} Nc4 {[%emt 0:00:07]} 23. Nxc4 {[%emt 0:00:29]} dxc4 {[%emt 0:00:03]} 24. Rxc4 {[%emt 0:00:10]} Be4+ {[%emt 0:01:13]} 25. f3 {[%emt 0:03:21]} Bd5 {[%emt 0:00:04]} 26. Rc3 {[%emt 0:00:01]} c5 {[%emt 0:01:14]} 27. dxc5 {[%emt 0:00:03]} Bc4 {[%emt 0:00:06]} 28. Qc1 {[%emt 0:00:04]} Bxf1+ {[%emt 0:00:06]} 29. Qxf1 {[%emt 0:00:00]} Qxc3 {[%emt 0:01:38]} 30. bxc3 {[%emt 0:00:04]} Rxe3 {[%emt 0:00:02]} 31. Qc4 {[%emt 0:02:28]} Rd2+ {[%emt 0:00:11]} 32. Kg3 {[%emt 0:00:17]} g5 {[%emt 0:00:55]} 33. Qf1 {[%emt 0:01:47]} Rxc3 {[%emt 0:01:38]} 34. Qe1 {[%emt 0:00:04]} Rcc2 {[%emt 0:00:12]} 35. Qe8+ {[%emt 0:00:02]} Kg7 {[%emt 0:00:03]} 36. Qe5+ {[%emt 0:00:05]} Kg6 {[%emt 0:00:05]} 37. Qf5+ {[%emt 0:00:08]} Kg7 {[%emt 0:00:01]} 38. Qe5+ {[%emt 0:00:01]} Kf8 {[%emt 0:00:07]} 39. Qb8+ {[%emt 0:00:22]} Ke7 {[%emt 0:00:11]} 40. Qxa7+ {[%emt 0:00:26]} Kf6 {[%emt 0:00:06]} 41. Qa6+ {[%emt 0:00:29]} Kg7 {[%emt 0:00:03]} 42. Qf1 {[%emt 0:00:01]} Rxa2 {[%emt 0:00:08]} 43. c6 {[%emt 0:00:28]} Rdc2 {[%emt 0:00:07]} 44. Qg1 {[%emt 0:00:11]} Rxc6 {[%emt 0:00:10]} 45. Qd4+ {[%emt 0:00:02]} Rf6 {[%emt 0:00:07]} 46. Qc5 {[%emt 0:00:29]} Rd2 {[%emt 0:00:26]} 47. Qc4 {[%emt 0:00:27]} Rdd6 {[%emt 0:00:09]} 48. Qb5 {[%emt 0:00:20]} Rb6 {[%emt 0:00:04]} 49. Qd5 {[%emt 0:00:04]} Rbd6 {[%emt 0:00:04]} 50. Qb5 {[%emt 0:00:03]} Rd2 {[%emt 0:00:06]} 51. Qc4 {[%emt 0:00:44]} Rd7 {[%emt 0:00:14]} 52. Qe4 {[%emt 0:00:14]} Rdd6 {[%emt 0:00:04]} 53. h4 {[%emt 0:00:03]} gxh4+ {[%emt 0:00:03]} 54. Kxh4 {[%emt 0:00:00]} Rde6 {[%emt 0:00:02]} 55. Qd4 {[%emt 0:00:03]} Kh7 {[%emt 0:00:03]} 56. Kg3 {[%emt 0:00:05]} h5 {[%emt 0:00:06]} 57. gxh5 {[%emt 0:00:06]} Kh6 {[%emt 0:00:04]} 58. Qh4 {[%emt 0:00:15]} Rf5 {[%emt 0:00:06]} 59. Qd4 {[%emt 0:00:10]} Rxh5 {[%emt 0:00:10]} 60. Qh8+ {[%emt 0:00:05]} Kg6 {[%emt 0:00:02]} 61. Qg8+ {[%emt 0:00:04]} Kf6 {[%emt 0:00:03]} 62. Qd8+ {[%emt 0:00:03]} Kg7 {[%emt 0:00:03]} 63. Kg4 {[%emt 0:00:07]} Rhh6 {[%emt 0:00:06]} 64. Qd4+ {[%emt 0:00:04]} Ref6 {[%emt 0:00:03]} 65. f4 {[%emt 0:00:09]} Rhg6+ {[%emt 0:00:06]} 66. Kf3 {[%emt 0:00:02]} Kg8 {[%emt 0:00:09]} 67. Qd8+ {[%emt 0:00:03]} Kh7 {[%emt 0:00:03]} 68. Qd7 {[%emt 0:00:05]} Kg7 {[%emt 0:00:13]} 69. Qd4 {[%emt 0:00:03]} Rh6 {[%emt 0:00:02]} 70. Qe5 {[%emt 0:00:07]} Kg8 {[%emt 0:00:02]} 71. Qe8+ {[%emt 0:00:02]} Kh7 {[%emt 0:00:03]} 72. Qe4+ {[%emt 0:00:02]} Kg7 {[%emt 0:00:02]} 73. Qe5 {[%emt 0:00:02]} Rh1 {[%emt 0:00:05]} 74. Qg5+ {[%emt 0:00:13]} Rg6 {[%emt 0:00:02]} 75. Qe5+ {[%emt 0:00:01]} Kg8 {[%emt 0:00:02]} 76. Qe8+ {[%emt 0:00:02]} Kg7 {[%emt 0:00:02]} 77. Qe5+ {[%emt 0:00:02]} Kh7 {[%emt 0:00:02]} 78. Qf5 {[%emt 0:00:12]} Kg8 {[%emt 0:00:05]} 79. Qc8+ {[%emt 0:00:04]} Kg7 {[%emt 0:00:02]} 80. Qc3+ {[%emt 0:00:05]} Rf6 {[%emt 0:00:01]} 81. Qc4 {[%emt 0:00:14]} Rh4 {[%emt 0:00:06]} 82. Kg3 {[%emt 0:00:08]} Rhxf4 {[%emt 0:00:02]} 83. Qd5 {[%emt 0:00:03]} R4f5 {[%emt 0:00:06]} 84. Qd4 {[%emt 0:00:03]} Rg5+ {[%emt 0:00:04]} 85. Kh4 {[%emt 0:00:02]} Rgg6 {[%emt 0:00:02]} 86. Kh5 {[%emt 0:00:05]} Kh7 {[%emt 0:00:03]} 87. Qe4 {[%emt 0:00:06]} Rf2 {[%emt 0:00:07]} 88. Qe5 {[%emt 0:00:04]} Rh2+ {[%emt 0:00:09]} 89. Qxh2 {[%emt 0:00:06]} Rh6+ {[%emt 0:00:02]} 0-1

[Event "European Online Club-ch-C 2021"]
[Site "Online"]
[Date "2021.03.27"]
[Round "9.12"]
[White "Krejci, Jan"]
[Black "Lahoche, Dorian"]
[Result "1/2-1/2"]
[ECO "A26"]
[WhiteElo "2540"]
[BlackElo "2124"]
[Annotator "ChessBase"]
[PlyCount "106"]
[EventDate "2021.03.27"]
[EventType "team-tourn"]
[EventCountry "NET"]
[SourceTitle "playchess.com"]
[Source "ChessBase"]
[SourceQuality "1"]
[TimeControl "900+5"]

1. c4 {[%emt 0:00:00]} e5 {[%emt 0:00:09]} 2. Nc3 {[%emt 0:00:03]} Nf6 {[%emt 0:00:03]} 3. g3 {[%emt 0:00:02]} g6 {[%emt 0:00:07]} 4. Bg2 {[%emt 0:00:02]} Bg7 {[%emt 0:00:03]} 5. e4 {[%emt 0:00:16]} Nc6 {[%emt 0:00:03]} 6. Nge2 {[%emt 0:00:02]} O-O {[%emt 0:00:02]} 7. d3 {[%emt 0:00:03]} d6 {[%emt 0:00:02]} 8. h3 {[%emt 0:00:19]} Be6 {[%emt 0:00:04]} 9. O-O {[%emt 0:00:05]} Qd7 {[%emt 0:00:02]} 10. Kh2 {[%emt 0:00:01]} Nd4 {[%emt 0:00:03]} 11. Nxd4 {[%emt 0:00:05]} exd4 {[%emt 0:00:01]} 12. Ne2 {[%emt 0:00:05]} c5 {[%emt 0:00:32]} 13. f4 {[%emt 0:00:17]} Qc7 {[%emt 0:00:59]} 14. b4 {[%emt 0:01:01]} Bd7 {[%emt 0:01:11]} 15. bxc5 {[%emt 0:00:18]} dxc5 {[%emt 0:00:00]} 16. f5 {[%emt 0:00:19]} Ne8 {[%emt 0:02:59]} 17. Bf4 {[%emt 0:01:01]} Be5 {[%emt 0:00:09]} 18. Bh6 {[%emt 0:00:02]} Bg7 {[%emt 0:00:16]} 19. Qd2 {[%emt 0:00:04]} f6 {[%emt 0:00:26]} 20. Bxg7 {[%emt 0:01:54]} Kxg7 {[%emt 0:00:18]} 21. fxg6 {[%emt 0:01:07]} hxg6 {[%emt 0:00:04]} 22. Nf4 {[%emt 0:00:00]} Qe5 {[%emt 0:01:14]} 23. Nd5 {[%emt 0:00:02]} Bc6 {[%emt 0:00:24]} 24. Rf4 {[%emt 0:00:08]} Nd6 {[%emt 0:00:28]} 25. Raf1 {[%emt 0:00:34]} Bxd5 {[%emt 0:00:15]} 26. cxd5 {[%emt 0:00:15]} b5 {[%emt 0:00:42]} 27. h4 {[%emt 0:01:01]} c4 {[%emt 0:00:55]} 28. Bh3 {[%emt 0:00:03]} c3 {[%emt 0:00:44]} 29. Qe2 {[%emt 0:00:36]} a5 {[%emt 0:00:33]} 30. Be6 {[%emt 0:00:04]} b4 {[%emt 0:00:29]} 31. Qg4 {[%emt 0:00:04]} Qh5 {[%emt 0:00:38]} 32. Qh3 {[%emt 0:00:03]} a4 {[%emt 0:00:41]} 33. Rg4 {[%emt 0:01:18]} b3 {[%emt 0:00:51]} 34. Bf5 {[%emt 0:00:06]} Nxf5 {[%emt 0:00:11]} 35. Rxf5 {[%emt 0:00:20]} g5 {[%emt 0:00:21]} 36. e5 {[%emt 0:00:10]} Kh6 {[%emt 0:01:08]} 37. exf6 {[%emt 0:02:23]} c2 {[%emt 0:00:22]} 38. Rfxg5 {[%emt 0:00:03]} c1=Q {[%emt 0:00:17]} 39. Rxh5+ {[%emt 0:00:05]} Kxh5 {[%emt 0:00:00]} 40. Rg5+ {[%emt 0:00:05]} Qxg5 {[%emt 0:00:19]} 41. hxg5+ {[%emt 0:00:02]} Kxg5 {[%emt 0:00:00]} 42. Qh4+ {[%emt 0:00:12]} Kg6 {[%emt 0:00:04]} 43. Qe4+ {[%emt 0:00:02]} Kxf6 {[%emt 0:00:05]} 44. Qxd4+ {[%emt 0:00:02]} Kg6 {[%emt 0:00:03]} 45. Qg4+ {[%emt 0:00:05]} Kh6 {[%emt 0:00:04]} 46. axb3 {[%emt 0:00:03]} a3 {[%emt 0:00:09]} 47. Qe6+ {[%emt 0:00:13]} Kg7 {[%emt 0:00:06]} 48. Qe5+ {[%emt 0:00:02]} Kg6 {[%emt 0:00:06]} 49. Qe4+ {[%emt 0:00:07]} Kh6 {[%emt 0:00:06]} 50. Qh4+ {[%emt 0:00:03]} Kg6 {[%emt 0:00:02]} 51. Qg4+ {[%emt 0:00:01]} Kh6 {[%emt 0:00:02]} 52. Qh4+ {[%emt 0:00:02]} Kg6 {[%emt 0:00:01]} 53. Qg4+ {[%emt 0:00:01]} Kh6 {[%emt 0:00:02]} 1/2-1/2

[Event "European Online Club-ch-C 2021"]
[Site "Online"]
[Date "2021.03.27"]
[Round "9.13"]
[White "Braun, Christian"]
[Black "Bluebaum, Matthias"]
[Result "0-1"]
[ECO "C00"]
[WhiteElo "2409"]
[BlackElo "2670"]
[Annotator "ChessBase"]
[PlyCount "80"]
[EventDate "2021.03.27"]
[EventType "team-tourn"]
[EventCountry "NET"]
[SourceTitle "playchess.com"]
[Source "ChessBase"]
[SourceQuality "1"]
[TimeControl "900+5"]

1. e4 {[%emt 0:00:00]} e6 {[%emt 0:00:03]} 2. d3 {[%emt 0:00:03]} d5 {[%emt 0:00:02]} 3. Nd2 {[%emt 0:00:02]} Nf6 {[%emt 0:00:02]} 4. Ngf3 {[%emt 0:00:02]} b6 {[%emt 0:00:02]} 5. g3 {[%emt 0:00:03]} dxe4 {[%emt 0:00:03]} 6. dxe4 {[%emt 0:00:00]} Bb7 {[%emt 0:00:01]} 7. Qe2 {[%emt 0:00:23]} Nc6 {[%emt 0:00:03]} 8. c3 {[%emt 0:00:10]} a5 {[%emt 0:00:12]} 9. a4 {[%emt 0:00:45]} e5 {[%emt 0:00:23]} 10. Nc4 {[%emt 0:00:07]} Bc5 {[%emt 0:00:49]} 11. Bg5 {[%emt 0:00:22]} Ba6 {[%emt 0:01:32]} 12. Qc2 {[%emt 0:01:54]} h6 {[%emt 0:00:24]} 13. Be3 {[%emt 0:00:30]} Bxc4 {[%emt 0:00:12]} 14. Bxc4 {[%emt 0:00:04]} Bxe3 {[%emt 0:00:02]} 15. Bb5 {[%emt 0:00:01]} Qd6 {[%emt 0:02:21]} 16. Rd1 {[%emt 0:01:52]} Qe6 {[%emt 0:01:52]} 17. Nxe5 {[%emt 0:00:14]} O-O {[%emt 0:00:10]} 18. Nxc6 {[%emt 0:00:06]} Ng4 {[%emt 0:01:31]} 19. fxe3 {[%emt 0:00:36]} Nxe3 {[%emt 0:00:00]} 20. Qd3 {[%emt 0:00:23]} Nxd1 {[%emt 0:00:08]} 21. Kxd1 {[%emt 0:00:04]} Rae8 {[%emt 0:01:00]} 22. Rf1 {[%emt 0:01:40]} Qxe4 {[%emt 0:00:25]} 23. Qxe4 {[%emt 0:00:00]} Rxe4 {[%emt 0:00:01]} 24. Kc2 {[%emt 0:00:12]} g6 {[%emt 0:00:31]} 25. Nd4 {[%emt 0:00:33]} f5 {[%emt 0:00:28]} 26. Bc4+ {[%emt 0:00:09]} Kh7 {[%emt 0:00:13]} 27. Rd1 {[%emt 0:00:30]} Rf6 {[%emt 0:00:59]} 28. Bd3 {[%emt 0:00:22]} Re7 {[%emt 0:00:08]} 29. h4 {[%emt 0:00:03]} Re3 {[%emt 0:00:25]} 30. Ne2 {[%emt 0:01:00]} Rd6 {[%emt 0:00:25]} 31. h5 {[%emt 0:00:12]} Rdxd3 {[%emt 0:00:21]} 32. hxg6+ {[%emt 0:00:02]} Kg7 {[%emt 0:00:02]} 33. Rxd3 {[%emt 0:00:04]} Rxe2+ {[%emt 0:00:01]} 34. Kb3 {[%emt 0:00:10]} Re7 {[%emt 0:00:23]} 35. Kc4 {[%emt 0:00:31]} Kxg6 {[%emt 0:00:15]} 36. b4 {[%emt 0:00:03]} Kg5 {[%emt 0:01:25]} 37. Kb5 {[%emt 0:00:15]} Kg4 {[%emt 0:00:08]} 38. bxa5 {[%emt 0:00:37]} Re5+ {[%emt 0:00:04]} 39. Kc6 {[%emt 0:00:05]} Rc5+ {[%emt 0:00:01]} 40. Kd7 {[%emt 0:00:11]} bxa5 {[%emt 0:00:08]} 0-1

[Event "European Online Club-ch-C 2021"]
[Site "Online"]
[Date "2021.03.27"]
[Round "9.14"]
[White "Donchenko, Alexander"]
[Black "Lenaerts, Lennert"]
[Result "1-0"]
[ECO "D11"]
[WhiteElo "2678"]
[BlackElo "2357"]
[Annotator "ChessBase"]
[PlyCount "75"]
[EventDate "2021.03.27"]
[EventType "team-tourn"]
[EventCountry "NET"]
[SourceTitle "playchess.com"]
[Source "ChessBase"]
[SourceQuality "1"]
[TimeControl "900+5"]

1. d4 {[%emt 0:00:00]} d5 {[%emt 0:00:04]} 2. c4 {[%emt 0:00:02]} c6 {[%emt 0:00:02]} 3. Nf3 {[%emt 0:00:03]} Nf6 {[%emt 0:00:01]} 4. Qc2 {[%emt 0:00:03]} g6 {[%emt 0:00:04]} 5. cxd5 {[%emt 0:00:03]} cxd5 {[%emt 0:00:03]} 6. Nc3 {[%emt 0:00:01]} a6 {[%emt 0:00:09]} 7. Bf4 {[%emt 0:00:04]} Nc6 {[%emt 0:00:03]} 8. e3 {[%emt 0:00:02]} Bg7 {[%emt 0:00:06]} 9. Be2 {[%emt 0:00:02]} O-O {[%emt 0:00:02]} 10. O-O {[%emt 0:00:03]} Bg4 {[%emt 0:01:02]} 11. h3 {[%emt 0:00:12]} Bxf3 {[%emt 0:00:04]} 12. Bxf3 {[%emt 0:00:00]} e6 {[%emt 0:00:06]} 13. Rac1 {[%emt 0:00:22]} Qe7 {[%emt 0:00:07]} 14. Na4 {[%emt 0:00:13]} Nd7 {[%emt 0:00:18]} 15. Qd2 {[%emt 0:01:51]} Rac8 {[%emt 0:00:14]} 16. a3 {[%emt 0:00:05]} Rfd8 {[%emt 0:00:44]} 17. Rfd1 {[%emt 0:00:52]} b5 {[%emt 0:00:56]} 18. Nc5 {[%emt 0:01:18]} Nxc5 {[%emt 0:02:19]} 19. Rxc5 {[%emt 0:00:04]} e5 {[%emt 0:00:02]} 20. Bg3 {[%emt 0:01:56]} exd4 {[%emt 0:00:20]} 21. Qc2 {[%emt 0:01:20]} Na7 {[%emt 0:00:57]} 22. exd4 {[%emt 0:00:40]} Bxd4 {[%emt 0:00:07]} 23. Rxc8 {[%emt 0:00:28]} Rxc8 {[%emt 0:00:04]} 24. Qb3 {[%emt 0:00:22]} Qf6 {[%emt 0:01:09]} 25. Qxd5 {[%emt 0:00:19]} Bb6 {[%emt 0:02:22]} 26. Qd6 {[%emt 0:00:56]} Qxd6 {[%emt 0:00:41]} 27. Rxd6 {[%emt 0:00:00]} Rc1+ {[%emt 0:00:02]} 28. Kh2 {[%emt 0:00:03]} Nc8 {[%emt 0:00:03]} 29. Rd7 {[%emt 0:00:09]} Kf8 {[%emt 0:00:12]} 30. Bd5 {[%emt 0:00:30]} Rd1 {[%emt 0:00:10]} 31. Rxf7+ {[%emt 0:00:27]} Ke8 {[%emt 0:00:04]} 32. Ba2 {[%emt 0:00:14]} Rd2 {[%emt 0:00:05]} 33. Rxh7 {[%emt 0:00:14]} Bxf2 {[%emt 0:00:03]} 34. Bf4 {[%emt 0:00:14]} Rxb2 {[%emt 0:00:07]} 35. Be6 {[%emt 0:00:05]} Nb6 {[%emt 0:00:18]} 36. Bd6 {[%emt 0:00:19]} Bd4 {[%emt 0:00:05]} 37. Rb7 {[%emt 0:00:19]} Nc4 {[%emt 0:00:20]} 38. Rb8# {[%emt 0:00:06]} 1-0

[Event "European Online Club-ch-C 2021"]
[Site "Online"]
[Date "2021.03.27"]
[Round "9.15"]
[White "Zimmermann, Luc"]
[Black "Heimann, Andreas"]
[Result "0-1"]
[ECO "B22"]
[WhiteElo "2151"]
[BlackElo "2606"]
[Annotator "ChessBase"]
[PlyCount "82"]
[EventDate "2021.03.27"]
[EventType "team-tourn"]
[EventCountry "NET"]
[SourceTitle "playchess.com"]
[Source "ChessBase"]
[SourceQuality "1"]
[TimeControl "900+5"]

1. e4 {[%emt 0:00:00]} c5 {[%emt 0:00:05]} 2. c3 {[%emt 0:00:02]} Nf6 {[%emt 0:00:04]} 3. e5 {[%emt 0:00:02]} Nd5 {[%emt 0:00:02]} 4. d4 {[%emt 0:00:00]} cxd4 {[%emt 0:00:01]} 5. Nf3 {[%emt 0:00:01]} d6 {[%emt 0:00:04]} 6. Bc4 {[%emt 0:00:03]} e6 {[%emt 0:00:16]} 7. cxd4 {[%emt 0:00:02]} Be7 {[%emt 0:00:04]} 8. O-O {[%emt 0:00:02]} O-O {[%emt 0:00:01]} 9. Qe2 {[%emt 0:00:04]} b6 {[%emt 0:00:03]} 10. Bd2 {[%emt 0:02:05]} Bb7 {[%emt 0:00:04]} 11. Nc3 {[%emt 0:00:02]} Nxc3 {[%emt 0:00:07]} 12. Bxc3 {[%emt 0:00:02]} dxe5 {[%emt 0:00:34]} 13. dxe5 {[%emt 0:00:30]} Nd7 {[%emt 0:00:02]} 14. Rfd1 {[%emt 0:00:58]} Qc7 {[%emt 0:00:05]} 15. Bd3 {[%emt 0:03:27]} Nc5 {[%emt 0:01:49]} 16. Bc2 {[%emt 0:00:20]} Qc6 {[%emt 0:00:12]} 17. Rac1 {[%emt 0:01:11]} a5 {[%emt 0:00:04]} 18. Qe3 {[%emt 0:03:01]} Rfd8 {[%emt 0:00:12]} 19. Bd4 {[%emt 0:00:54]} h6 {[%emt 0:01:03]} 20. h4 {[%emt 0:01:01]} Rac8 {[%emt 0:00:06]} 21. Bb1 {[%emt 0:00:27]} Qa4 {[%emt 0:01:25]} 22. b3 {[%emt 0:00:33]} Qb5 {[%emt 0:00:03]} 23. Ba1 {[%emt 0:00:57]} Bxf3 {[%emt 0:01:03]} 24. Qxf3 {[%emt 0:00:05]} Bxh4 {[%emt 0:00:02]} 25. Bd4 {[%emt 0:00:58]} Bg5 {[%emt 0:00:19]} 26. Be3 {[%emt 0:00:07]} Bxe3 {[%emt 0:00:18]} 27. Qxe3 {[%emt 0:00:00]} Qb4 {[%emt 0:00:27]} 28. Rd6 {[%emt 0:00:06]} Rxd6 {[%emt 0:01:34]} 29. exd6 {[%emt 0:00:02]} Rd8 {[%emt 0:00:02]} 30. Rd1 {[%emt 0:00:06]} Qg4 {[%emt 0:00:48]} 31. Rd4 {[%emt 0:00:05]} Qg5 {[%emt 0:00:01]} 32. Qe1 {[%emt 0:00:11]} g6 {[%emt 0:01:35]} 33. Qd1 {[%emt 0:00:03]} Qe5 {[%emt 0:00:10]} 34. g3 {[%emt 0:00:08]} Nb7 {[%emt 0:00:12]} 35. d7 {[%emt 0:00:02]} Nc5 {[%emt 0:00:01]} 36. Rd6 {[%emt 0:00:10]} Qf6 {[%emt 0:00:56]} 37. Rxb6 {[%emt 0:00:06]} Rxd7 {[%emt 0:00:03]} 38. Qe1 {[%emt 0:00:04]} Rd5 {[%emt 0:00:56]} 39. Rb8+ {[%emt 0:00:06]} Kg7 {[%emt 0:00:02]} 40. Kg2 {[%emt 0:00:04]} Qb2 {[%emt 0:00:12]} 41. Be4 {[%emt 0:00:07]} Re5 {[%emt 0:00:07]} 0-1

[Event "European Online Club-ch-C 2021"]
[Site "Online"]
[Date "2021.03.27"]
[Round "9.16"]
[White "Keymer, Vincent"]
[Black "De Vries, Leon"]
[Result "1-0"]
[ECO "D75"]
[WhiteElo "2591"]
[BlackElo "2021"]
[Annotator "ChessBase"]
[PlyCount "73"]
[EventDate "2021.03.27"]
[EventType "team-tourn"]
[EventCountry "NET"]
[SourceTitle "playchess.com"]
[Source "ChessBase"]
[SourceQuality "1"]
[TimeControl "900+5"]

1. Nf3 {[%emt 0:00:00]} g6 {[%emt 0:00:05]} 2. d4 {[%emt 0:00:05]} Nf6 {[%emt 0:00:04]} 3. c4 {[%emt 0:00:01]} Bg7 {[%emt 0:00:02]} 4. g3 {[%emt 0:00:02]} O-O {[%emt 0:00:03]} 5. Bg2 {[%emt 0:00:02]} d5 {[%emt 0:00:02]} 6. cxd5 {[%emt 0:00:02]} Nxd5 {[%emt 0:00:03]} 7. O-O {[%emt 0:00:06]} c5 {[%emt 0:00:04]} 8. dxc5 {[%emt 0:00:25]} Na6 {[%emt 0:00:21]} 9. Ng5 {[%emt 0:02:10]} Nf6 {[%emt 0:01:28]} 10. c6 {[%emt 0:00:13]} bxc6 {[%emt 0:01:27]} 11. Nc3 {[%emt 0:00:39]} Rb8 {[%emt 0:00:49]} 12. Qxd8 {[%emt 0:00:31]} Rxd8 {[%emt 0:00:05]} 13. Rd1 {[%emt 0:00:00]} Rxd1+ {[%emt 0:00:11]} 14. Nxd1 {[%emt 0:00:00]} h6 {[%emt 0:00:23]} 15. Ne4 {[%emt 0:00:30]} Nxe4 {[%emt 0:00:29]} 16. Bxe4 {[%emt 0:00:04]} Nb4 {[%emt 0:00:28]} 17. Bf4 {[%emt 0:00:11]} e5 {[%emt 0:00:17]} 18. Be3 {[%emt 0:00:08]} f5 {[%emt 0:00:12]} 19. Bg2 {[%emt 0:00:08]} Nc2 {[%emt 0:00:17]} 20. Bxa7 {[%emt 0:00:07]} Ra8 {[%emt 0:03:10]} 21. Rc1 {[%emt 0:00:06]} Nb4 {[%emt 0:00:37]} 22. Bc5 {[%emt 0:01:01]} Nxa2 {[%emt 0:00:23]} 23. Ra1 {[%emt 0:00:03]} Bb7 {[%emt 0:00:06]} 24. e4 {[%emt 0:00:07]} Bf8 {[%emt 0:00:47]} 25. Bxf8 {[%emt 0:00:08]} Kxf8 {[%emt 0:00:03]} 26. exf5 {[%emt 0:00:02]} gxf5 {[%emt 0:00:03]} 27. Ne3 {[%emt 0:00:01]} f4 {[%emt 0:00:42]} 28. Nc4 {[%emt 0:00:25]} fxg3 {[%emt 0:00:21]} 29. hxg3 {[%emt 0:00:05]} Nb4 {[%emt 0:00:32]} 30. Rxa8+ {[%emt 0:00:03]} Bxa8 {[%emt 0:00:03]} 31. Nxe5 {[%emt 0:00:00]} Kg7 {[%emt 0:00:07]} 32. f4 {[%emt 0:00:08]} Nd5 {[%emt 0:00:21]} 33. Bxd5 {[%emt 0:00:11]} cxd5 {[%emt 0:00:02]} 34. Nf3 {[%emt 0:00:01]} Kf6 {[%emt 0:00:07]} 35. Nd4 {[%emt 0:00:02]} Bb7 {[%emt 0:00:06]} 36. Kf2 {[%emt 0:00:00]} h5 {[%emt 0:00:13]} 37. b4 {[%emt 0:00:00]} 1-0